bitfinex/quotes_ETHUSD_20250210
["timestamp","ask_amount","ask_price","bid_price","bid_amount"]
[1739156722860,0.1603574,2601.1,2601.0,6.85886879]
[1739156723060,0.1603574,2601.1,2601.0,6.30886879]
[1739156723263,0.1603574,2601.1,2601.0,7.32808251]
[1739156724686,0.1603574,2601.1,2601.0,8.66691803]
[1739156724887,3.84265,2602.4,2601.2,0.55]
[1739156725183,3.84275,2602.3,2601.8,2.46419879]
[1739156725348,3.84307,2602.1,2601.8,2.46419879]
[1739156725692,3.84334,2601.9,2601.4,2.46419879]
[1739156725898,0.05572343,2602.0,2601.4,3.09889149]
[1739156726110,0.05587027,2601.8,2601.4,6.94295149]
[1739156726311,0.7967,2602.5,2601.6,3.84377]
[1739156726462,0.612,2603.2,2601.6,3.84377]
[1739156726463,0.55,2603.3,2601.8,0.7504]
[1739156726651,3.84184,2603.0,2602.4,2.46419879]
[1739156726852,0.7967,2603.1,2602.4,2.46419879]
[1739156727063,3.84267,2602.4,2602.0,2.46419879]
[1739156727291,3.84261,2602.4,2602.0,2.46419879]
[1739156727768,3.84275,2602.3,2602.0,2.46419879]
[1739156727964,0.7967,2602.4,2602.0,2.71061867]
[1739156728174,0.7967,2603.2,2602.8,3.8419]
[1739156728368,0.55,2603.3,2602.7,3.84215]
[1739156728581,0.55,2603.3,2602.6,2.46419879]
[1739156728778,0.55,2603.3,2602.6,6.30636879]
[1739156728992,0.05512715,2603.2,2602.6,6.30636879]
[1739156729365,0.05512715,2603.2,2602.7,3.84216]
[1739156729555,0.05512715,2603.2,2602.6,2.46419879]
[1739156729756,3.84183,2603.0,2602.6,2.46419879]
[1739156729961,0.7967,2602.9,2602.3,3.84261]
[1739156730388,0.05512715,2602.8,2602.3,3.84261]
[1739156730689,0.05512715,2602.8,2602.5,3.84245]
[1739156730895,0.05512715,2602.8,2602.3,3.84261]
[1739156731099,0.05512715,2602.8,2602.5,3.84244]
[1739156731397,0.05512715,2602.8,2602.3,3.84265]
[1739156731700,0.05512715,2602.8,2602.3,4.47333488]
[1739156731898,3.89713715,2602.8,2602.2,2.46419879]
[1739156732569,3.84246,2602.5,2602.2,2.46419879]
[1739156732765,3.84242,2602.6,2602.2,2.46419879]
[1739156732969,0.05512715,2602.5,2602.3,0.34884622]
[1739156733368,0.05512715,2602.5,2602.4,3.8426]
[1739156733588,0.7967,2602.9,2602.4,4.5120072]
[1739156733800,0.05512715,2602.8,2602.4,3.8426]
[1739156734011,0.05512715,2602.8,2602.7,3.84216]
[1739156734304,0.8017,2603.4,2602.8,3.84192]
[1739156734606,0.1448095,2603.7,2603.2,3.21459879]
[1739156734807,0.1448095,2603.7,2603.6,6.30502879]
[1739156734991,0.1448095,2603.7,2603.6,7.35802976]
[1739156735301,0.01194044,2604.4,2604.3,3.8398]
[1739156735503,0.01194044,2604.4,2604.3,7.05439879]
[1739156736636,0.01194044,2604.4,2604.3,7.60439879]
[1739156737108,4.63429,2605.8,2604.8,3.83893]
[1739156737272,4.3796407,2605.7,2604.9,2.46419879]
[1739156737606,3.8383,2605.4,2604.9,2.46419879]
[1739156737908,0.7776,2605.2,2604.5,2.46419879]
[1739156738089,0.7776,2605.2,2604.3,7.2504]
[1739156738090,0.7776,2605.2,2604.3,6.5]
[1739156738290,0.7776,2605.2,2604.1,2.46419879]
[1739156738516,3.83914,2604.8,2604.1,6.30427879]
[1739156738741,3.83958,2604.5,2604.1,2.46419879]
[1739156739712,3.84008,2604.2,2603.7,2.46419879]
[1739156740018,3.84008,2604.2,2603.5,3.84096]
[1739156740324,3.8401,2604.1,2603.3,2.46419879]
[1739156740516,3.8407,2603.7,2603.3,2.46419879]
[1739156740687,0.7776,2603.6,2603.3,2.46419879]
[1739156741019,0.7796,2604.1,2603.4,3.84102]
[1739156741181,4.6197,2604.1,2603.3,2.46419879]
[1739156741528,3.83951,2604.5,2603.9,3.84037]
[1739156741740,0.7796,2604.6,2604.1,2.46419879]
[1739156741942,0.7796,2605.1,2604.5,2.46419879]
[1739156742078,0.7796,2605.1,2604.5,6.30356879]
[1739156742279,0.7796,2605.1,2604.6,3.83935]
[1739156742479,0.7796,2605.1,2604.5,2.46419879]
[1739156742692,3.83877,2605.0,2604.5,2.46419879]
[1739156743118,3.89852456,2604.9,2604.5,2.46419879]
[1739156743280,3.83911,2604.8,2604.5,2.46419879]
[1739156743490,3.83911,2604.8,2604.1,2.46419879]
[1739156743690,3.83936,2604.6,2604.1,2.46419879]
[1739156744421,0.7796,2604.4,2604.1,2.46419879]
[1739156744789,0.059931,2604.3,2604.1,2.46419879]
[1739156745421,0.7796,2604.7,2604.1,2.46419879]
[1739156745422,0.7796,2604.7,2604.2,3.83995]
[1739156745720,0.05970694,2604.6,2604.2,3.83995]
[1739156746036,3.83916,2604.8,2604.2,3.83995]
[1739156746329,0.05725159,2604.7,2604.2,3.83995]
[1739156746821,3.84024,2604.0,2603.8,6.5]
[1739156747135,3.84024,2604.0,2602.9,2.46419879]
[1739156747136,4.61984,2604.0,2602.9,2.46419879]
[1739156747301,3.84114,2603.4,2602.9,2.46419879]
[1739156747616,4.61984,2604.0,2602.9,2.46419879]
[1739156747617,7.68185,2603.6,2602.9,2.46419879]
[1739156747817,0.05710494,2603.5,2602.9,2.46419879]
[1739156747984,0.05710494,2603.5,2603.3,2.46419879]
[1739156748189,0.7796,2604.1,2603.3,7.09933879]
[1739156748390,0.05624194,2604.0,2603.5,3.84094]
[1739156748593,0.05624194,2604.0,2603.5,3.84093]
[1739156749048,0.05624194,2604.0,2603.7,2.46419879]
[1739156749206,0.05624194,2604.0,2603.8,3.84044]
[1739156749383,0.05624194,2604.0,2603.7,2.46419879]
[1739156749587,3.84005,2604.2,2603.7,2.46419879]
[1739156749859,3.89647194,2604.1,2603.7,2.46419879]
[1739156750053,0.05624194,2604.1,2603.7,2.46419879]
[1739156750253,3.83953,2604.5,2603.8,3.87883194]
[1739156750477,0.05678571,2604.4,2603.8,0.03840194]
[1739156750660,0.05678571,2604.4,2604.1,2.46419879]
[1739156750952,0.7796,2604.6,2604.1,2.46419879]
[1739156751162,3.83898,2604.9,2604.1,6.30427879]
[1739156751163,0.05678571,2604.3,2604.1,6.30427879]
[1739156751344,0.7796,2605.0,2604.1,7.40197132]
[1739156751532,0.05716533,2604.2,2604.1,7.44036297]
[1739156751723,0.7796,2605.0,2604.2,3.83989]
[1739156752057,0.05716533,2604.9,2604.5,2.46419879]
[1739156752468,0.05716533,2604.9,2604.6,3.83929]
[1739156752755,0.05716533,2604.9,2604.7,3.83913]
[1739156753064,4.65665,2605.3,2604.7,3.83913]
[1739156753231,0.05743271,2605.2,2604.7,3.83913]
[1739156753645,3.83828,2605.4,2604.7,3.83913]
[1739156753850,0.05768278,2605.3,2604.9,3.8389]
[1739156754046,3.83803,2605.5,2604.9,3.8389]
[1739156754250,0.05768278,2605.4,2604.9,3.8389]
[1739156754539,3.83846,2605.3,2604.7,3.8391]
[1739156754867,3.83857,2605.2,2604.5,7.08152879]
[1739156755177,0.05768278,2605.1,2604.6,3.83925]
[1739156755325,0.05768278,2605.1,2604.5,7.08152879]
[1739156755673,3.83901,2604.9,2604.3,3.83976]
[1739156755972,3.83918,2604.8,2604.1,6.30422879]
[1739156756127,3.83934,2604.7,2604.1,6.30422879]
[1739156756325,4.65764,2604.7,2604.1,6.30422879]
[1739156756641,0.05768278,2604.6,2604.1,6.30422879]
[1739156756841,0.05768278,2604.6,2604.1,2.46419879]
[1739156757053,3.89717278,2604.6,2604.1,2.46419879]
[1739156757255,3.83966,2604.4,2603.7,2.46419879]
[1739156757455,3.83966,2604.4,2603.7,6.30483879]
[1739156757456,3.83982,2604.3,2603.7,6.30483879]
[1739156757649,0.05768278,2604.2,2603.7,6.30483879]
[1739156758129,3.89768278,2604.2,2603.7,2.46419879]
[1739156758333,3.84026,2604.0,2603.3,2.46419879]
[1739156758562,3.84026,2604.0,2603.3,6.30545879]
[1739156758779,3.89808414,2603.9,2603.3,6.30545879]
[1739156759056,3.84055,2603.8,2603.3,2.46419879]
[1739156759262,3.84069,2603.7,2603.3,2.46419879]
[1739156759468,0.05767414,2603.6,2603.3,2.46419879]
[1739156759635,3.84055,2603.8,2603.3,2.46419879]
[1739156759843,0.8183,2603.5,2603.0,3.84168]
[1739156760040,0.8183,2604.0,2603.4,3.84111]
[1739156760364,0.05767414,2603.9,2603.4,3.84111]
[1739156760737,0.05767414,2603.9,2603.8,3.84054]
[1739156760932,0.05767414,2603.9,2603.8,3.87893737]
[1739156761270,3.83818,2605.4,2603.9,0.7963]
[1739156761563,1.03162286,2605.5,2604.4,2.46419879]
[1739156761564,3.83803,2605.5,2604.4,2.46419879]
[1739156761729,3.83892,2604.9,2604.4,2.46419879]
[1739156762136,4.67082,2604.9,2604.4,2.46419879]
[1739156762334,3.83922,2604.7,2604.1,3.84004]
[1739156762538,3.83922,2604.7,2604.1,5.23412788]
[1739156762867,3.83965,2604.4,2604.0,2.46419879]
[1739156763163,3.83906,2604.8,2603.7,6.5]
[1739156763385,3.84019,2604.1,2603.7,6.5]
[1739156763598,3.84039,2603.9,2603.2,6.30560879]
[1739156763780,3.84039,2603.9,2603.3,1.74434188]
[1739156763781,3.84067,2603.8,2603.3,1.74434188]
[1739156763953,3.84039,2603.9,2603.2,2.46419879]
[1739156763954,3.84078,2603.7,2603.2,2.46419879]
[1739156764138,3.84056,2603.8,2603.2,6.30547879]
[1739156764464,3.84093,2603.6,2603.2,2.46419879]
[1739156765149,3.84072,2603.7,2603.2,2.46419879]
[1739156765656,0.8319,2603.8,2603.5,3.84096]
[1739156765972,0.8319,2603.8,2603.3,3.84124]
[1739156766281,3.83881,2605.0,2603.6,2.46419879]
[1739156766570,3.83904,2604.9,2604.1,2.46419879]
[1739156766872,3.83933,2604.7,2604.1,6.30427879]
[1739156767165,3.83933,2604.7,2604.2,0.03839541]
[1739156767359,3.83933,2604.7,2604.1,6.93470667]
[1739156767561,3.83963,2604.5,2604.1,2.46419879]
[1739156767752,3.8399,2604.3,2604.1,2.46419879]
[1739156768073,3.8399,2604.3,2603.7,2.46419879]
[1739156768374,3.84,2604.2,2603.7,2.46419879]
[1739156768558,3.84,2604.2,2603.3,8.16693588]
[1739156768559,0.7964,2604.5,2603.3,3.47889467]
[1739156768739,3.84093,2603.6,2603.3,2.46419879]
[1739156768938,3.84104,2603.5,2603.2,6.5]
[1739156769169,0.7964,2603.8,2602.9,2.46419879]
[1739156769379,3.84145,2603.2,2602.9,2.46419879]
[1739156769671,3.84145,2603.2,2602.9,2.71061867]
[1739156769939,3.84172,2603.0,2602.5,3.23869879]
[1739156770107,3.84231,2602.6,2602.5,2.46419879]
[1739156770399,3.8429,2602.2,2602.1,2.46419879]
[1739156770566,3.8429,2602.2,2601.7,9.73869879]
[1739156770954,3.84275,2602.3,2601.7,13.58230879]
[1739156771188,3.84275,2602.3,2601.8,1.35823088]
[1739156771367,3.84275,2602.3,2601.7,3.23869879]
[1739156771574,0.7964,2602.4,2601.7,3.23869879]
[1739156771809,3.8429,2602.2,2601.7,3.23869879]
[1739156773219,4.63858,2602.7,2602.1,2.46419879]
[1739156773430,3.84243,2602.6,2602.1,2.46419879]
[1739156773584,3.84261,2602.4,2602.1,2.46419879]
[1739156774129,3.8429,2602.2,2601.7,3.23869879]
[1739156774287,3.8429,2602.2,2601.7,3.94695467]
[1739156774488,3.84261,2602.4,2601.7,7.79057467]
[1739156774686,3.8985718,2602.3,2601.7,3.94695467]
[1739156774942,3.8985818,2602.3,2601.7,2.46419879]
[1739156775144,3.84318,2602.1,2601.7,2.46419879]
[1739156775639,0.05283094,2602.0,2601.8,3.84338]
[1739156775818,0.05283094,2602.0,2601.7,2.46419879]
[1739156776024,3.8433,2602.0,2601.7,2.46419879]
[1739156776205,0.05283094,2601.9,2601.7,2.46419879]
[1739156776414,3.84388,2601.6,2601.3,2.46419879]
[1739156776941,0.05278773,2601.5,2601.3,2.46419879]
[1739156777143,3.84352,2601.8,2601.3,2.46419879]
[1739156777444,0.05239008,2601.4,2601.3,2.46419879]
[1739156777911,3.84404,2601.5,2601.3,2.46419879]
[1739156778098,3.89647008,2601.4,2601.3,2.46419879]
[1739156778459,3.89647008,2601.4,2600.9,2.46419879]
[1739156779147,3.89647008,2601.4,2600.9,3.17256267]
[1739156779359,3.84467,2601.0,2600.5,8.96419879]
[1739156779642,0.05239008,2601.4,2600.5,8.96419879]
[1739156779795,3.84526,2600.6,2600.5,6.5]
[1739156780153,3.89747715,2600.6,2600.5,6.5]
[1739156780345,3.84541,2600.5,2600.1,2.46419879]
[1739156780633,3.89747715,2600.6,2600.1,2.46419879]
[1739156780811,4.64142,2600.8,2600.1,2.46419879]
[1739156780812,0.05164628,2600.5,2600.1,2.46419879]
[1739156781025,0.05164628,2600.5,2600.4,6.32710765]
[1739156781232,3.84477,2601.0,2600.4,7.34823479]
[1739156781439,0.05164628,2600.5,2600.4,7.34823479]
[1739156781643,3.84462,2601.1,2600.4,8.12273479]
[1739156782147,3.89632628,2601.0,2600.4,8.12273479]
[1739156782788,3.8451,2600.8,2600.4,3.25604765]
[1739156783032,3.84541,2600.5,2600.4,0.01734886]
[1739156783208,7.69036,2600.7,2600.4,0.01734886]
[1739156783514,3.84468,2601.0,2600.4,6.32710765]
[1739156783718,0.05164628,2600.6,2600.4,3.11425842]
[1739156783934,0.7964,2601.2,2600.5,3.84541]
[1739156784104,3.84477,2601.0,2600.8,2.46419879]
[1739156784305,3.84514,2600.7,2600.4,2.48154765]
[1739156784852,0.05164628,2600.6,2600.4,2.48154765]
[1739156785347,0.7964,2602.6,2600.7,0.55]
[1739156785653,3.84394,2601.5,2601.1,2.46419879]
[1739156785856,3.84432,2601.3,2601.1,2.46419879]
[1739156786150,3.84471,2601.0,2600.7,2.46419879]
[1739156786298,3.84497,2600.8,2600.7,2.46419879]
[1739156786498,3.84471,2601.0,2600.4,4.18840363]
[1739156786737,0.04980177,2600.9,2600.5,0.66526024]
[1739156787160,0.04980177,2600.9,2600.7,2.46419879]
[1739156787452,3.84497,2600.8,2600.7,2.46419879]
[1739156787663,3.84528,2600.6,2600.4,0.01734886]
[1739156787957,3.84541,2600.5,2600.4,0.01734886]
[1739156788248,3.89521177,2600.5,2600.4,0.01734886]
[1739156788901,3.84609,2600.1,2599.9,2.46419879]
[1739156789098,3.84578,2600.3,2599.6,3.8467]
[1739156789303,0.04980177,2600.2,2599.7,0.63108988]
[1739156789508,3.84547,2600.5,2599.9,2.46419879]
[1739156789835,3.8458,2600.3,2599.9,2.46419879]
[1739156790069,3.84571,2600.3,2599.9,2.46419879]
[1739156790228,0.7964,2600.6,2599.9,2.46419879]
[1739156790229,3.84615,2600.0,2599.9,2.46419879]
[1739156790436,3.84615,2600.0,2599.5,2.46419879]
[1739156790806,0.0479161,2599.9,2599.5,2.46419879]
[1739156791807,3.84618,2600.0,2599.5,2.46419879]
[1739156792003,3.84618,2600.0,2599.4,4.309105]
[1739156792004,3.8459,2600.2,2599.9,2.46419879]
[1739156792451,3.846,2600.1,2599.9,2.46419879]
[1739156792951,0.0479161,2600.0,2599.9,2.46419879]
[1739156793325,3.846,2600.1,2599.9,2.46419879]
[1739156793505,0.0479161,2600.0,2599.9,2.46419879]
[1739156793703,3.84615,2600.0,2599.5,2.46419879]
[1739156794026,4.64255,2600.0,2599.5,2.83428617]
[1739156794227,0.0479161,2599.9,2599.5,2.83428617]
[1739156794465,0.0479161,2599.9,2599.8,3.84644]
[1739156794764,4.64172,2600.6,2599.8,4.62094]
[1739156794965,4.64104,2601.1,2600.3,6.30977879]
[1739156795251,3.84437,2601.2,2600.8,2.46419879]
[1739156795451,3.84476,2601.0,2600.8,2.46419879]
[1739156795598,3.84476,2601.0,2600.4,3.86967667]
[1739156795790,3.84505,2600.8,2600.4,3.86967667]
[1739156796027,3.84505,2600.8,2600.4,3.09517667]
[1739156796351,0.7964,2601.3,2600.6,3.84511]
[1739156796510,3.84387,2601.6,2600.8,3.29319879]
[1739156796712,0.7591,2601.8,2601.2,2.46419879]
[1739156797048,3.84339,2601.9,2601.2,6.30856879]
[1739156797211,4.60217,2602.1,2601.4,3.84405]
[1739156797393,0.7591,2602.1,2601.6,6.30784879]
[1739156797592,4.60171,2602.4,2601.8,3.84343]
[1739156797799,4.60171,2602.4,2601.7,3.84362]
[1739156798313,0.7591,2602.4,2601.9,3.84334]
[1739156798525,0.7591,2602.4,2601.6,6.30784879]
[1739156798722,3.84305,2602.1,2601.7,0.71368488]
[1739156798920,3.84305,2602.1,2601.6,2.33425231]
[1739156799121,3.84288,2602.3,2601.6,2.33425231]
[1739156799322,3.84306,2602.1,2601.6,2.33425231]
[1739156799523,3.84352,2601.8,2601.2,3.92405567]
[1739156799846,3.84307,2602.1,2601.3,3.84417]
[1739156800048,3.84322,2602.0,2601.3,3.84417]
[1739156800243,3.8432,2602.0,2601.3,5.00542357]
[1739156800848,3.8432,2602.0,2601.3,5.00545357]
[1739156801207,3.84468,2601.0,2600.8,8.96419879]
[1739156801406,0.7591,2601.7,2600.8,8.96419879]
[1739156801407,3.84442,2601.2,2600.8,8.96419879]
[1739156801996,3.84453,2601.1,2600.8,8.96419879]
[1739156802350,3.84473,2601.0,2600.8,2.46419879]
[1739156802552,3.84482,2600.9,2600.4,2.46419879]
[1739156802714,3.84522,2600.7,2600.4,2.46419879]
[1739156803401,3.84546,2600.5,2600.0,2.46419879]
[1739156803604,3.84582,2600.3,2600.0,2.46419879]
[1739156803999,0.04789031,2600.2,2600.0,2.46419879]
[1739156804453,3.84557,2600.4,2600.0,2.46419879]
[1739156804648,0.04789031,2600.1,2600.0,2.46419879]
[1739156804855,3.84557,2600.4,2600.0,2.46419879]
[1739156805047,0.04789031,2600.1,2600.0,2.46419879]
[1739156805203,3.84548,2600.5,2600.0,2.46419879]
[1739156805398,0.04789031,2600.1,2599.7,0.829]
[1739156805671,3.84635,2599.9,2599.6,2.46419879]
[1739156805948,0.04789031,2599.8,2599.6,2.46419879]
[1739156806447,0.04789031,2599.8,2599.7,3.84659]
[1739156806653,3.84613,2600.1,2599.6,3.09530967]
[1739156806866,0.04789031,2599.8,2599.6,2.46419879]
[1739156807156,0.04789031,2599.7,2599.6,2.46419879]
[1739156807734,3.84627,2600.0,2599.6,2.46419879]
[1739156808051,0.04789031,2599.7,2599.6,2.46419879]
[1739156808263,3.84634,2599.9,2599.6,2.46419879]
[1739156808552,0.7591,2600.3,2599.6,2.46419879]
[1739156808553,3.84659,2599.7,2599.6,2.46419879]
[1739156808710,3.84646,2599.8,2599.2,2.46419879]
[1739156808711,3.89435031,2599.8,2599.2,2.46419879]
[1739156809111,3.84692,2599.5,2599.2,2.46419879]
[1739156809344,0.04550074,2599.4,2599.2,2.46419879]
[1739156809521,3.84676,2599.6,2599.2,2.46419879]
[1739156809823,0.04527546,2599.5,2599.2,2.46419879]
[1739156810017,3.84705,2599.4,2599.2,2.46419879]
[1739156810219,3.84718,2599.3,2598.8,2.46419879]
[1739156810420,3.8924468,2599.3,2598.8,2.46419879]
[1739156810615,0.0452668,2599.3,2598.9,3.84767]
[1739156810824,0.0452668,2599.3,2598.8,2.46419879]
[1739156811022,4.62001593,2600.0,2599.3,4.67609]
[1739156811023,3.8462,2600.0,2599.3,4.67609]
[1739156811257,3.84718,2599.3,2599.2,2.46419879]
[1739156811406,3.84718,2599.3,2598.8,2.81277341]
[1739156811763,3.8475,2599.1,2598.8,2.81277341]
[1739156812065,3.84718,2599.3,2598.8,2.46419879]
[1739156813260,4.62891,2599.5,2598.8,2.46419879]
[1739156813556,3.84691,2599.5,2599.2,2.46419879]
[1739156813725,3.84705,2599.4,2599.2,2.46419879]
[1739156814487,3.84691,2599.5,2598.8,2.46419879]
[1739156814488,3.84718,2599.3,2598.8,2.46419879]
[1739156814630,3.84765,2599.0,2598.8,2.46419879]
[1739156814830,3.84757,2599.1,2598.8,2.46419879]
[1739156815752,3.84774,2599.0,2598.8,2.46419879]
[1739156816247,3.84757,2599.1,2598.8,2.46419879]
[1739156817283,3.84724,2599.3,2598.8,2.46419879]
[1739156817437,7.67340412,2599.3,2598.8,2.79071867]
[1739156817786,3.84742,2599.2,2598.8,2.79071867]
[1739156818151,0.782,2599.8,2598.8,2.79071867]
[1739156818567,3.84636,2599.9,2598.4,6.5]
[1739156818568,3.84778,2598.9,2598.4,8.96419879]
[1739156818743,3.84794,2598.8,2598.4,8.96419879]
[1739156819145,0.04485944,2598.7,2598.4,2.46419879]
[1739156819347,3.84763,2599.0,2598.4,6.31260879]
[1739156819577,3.84763,2599.0,2598.4,2.46419879]
[1739156819880,0.04485944,2598.9,2598.4,2.46419879]
[1739156820080,3.84763,2599.0,2598.4,3.18116687]
[1739156820279,0.04375868,2598.8,2598.4,3.18116687]
[1739156820577,0.04375868,2598.8,2598.4,2.46419879]
[1739156820578,3.84793,2598.8,2598.4,2.46419879]
[1739156820875,0.04375868,2598.7,2598.5,3.84824]
[1739156821083,0.04375868,2598.7,2598.6,7.11341879]
[1739156821280,0.77846548,2599.5,2598.6,3.26519879]
[1739156821584,3.84852,2598.4,2598.3,0.01736288]
[1739156821780,3.84835,2598.6,2598.3,0.01736288]
[1739156821980,0.04383671,2598.4,2598.3,0.01736288]
[1739156822179,0.532,2599.2,2598.3,0.77669019]
[1739156822357,3.84748,2599.1,2598.7,2.46419879]
[1739156822570,3.84792,2598.8,2598.4,0.801]
[1739156822787,3.84834,2598.6,2598.3,2.48156167]
[1739156822989,3.84852,2598.4,2598.3,2.48156167]
[1739156823295,3.84834,2598.6,2598.3,2.48156167]
[1739156823458,3.848,2598.8,2598.3,2.48156167]
[1739156823805,3.84795,2598.8,2598.3,2.81366643]
[1739156824313,0.75234022,2599.1,2598.3,2.48156167]
[1739156824490,3.84847,2598.5,2598.3,2.48156167]
[1739156825099,4.59984022,2599.1,2598.4,3.84838]
[1739156825310,3.84775,2599.0,2598.4,3.84838]
[1739156825490,3.8475,2599.1,2598.6,3.8482]
[1739156825694,3.84695,2599.5,2598.9,2.21880046]
[1739156825875,3.84671,2599.7,2599.3,2.21880046]
[1739156826214,3.84704,2599.4,2599.3,2.21880046]
[1739156826525,3.84675,2599.6,2599.3,2.21880046]
[1739156826879,3.84617,2600.0,2599.4,4.64803]
[1739156827123,0.782,2600.2,2599.6,2.21880046]
[1739156827323,3.84615,2600.0,2599.9,2.21880046]
[1739156827628,0.782,2600.2,2599.6,2.21880046]
[1739156827824,3.84644,2599.9,2599.6,2.21880046]
[1739156828025,0.782,2600.2,2599.9,2.21880046]
[1739156828231,4.60553,2600.5,2599.9,2.21880046]
[1739156828379,3.84558,2600.4,2600.2,2.21880046]
[1739156828574,3.84571,2600.3,2600.2,2.21880046]
[1739156829228,3.84595,2600.2,2599.9,2.21880046]
[1739156829432,0.7601,2600.0,2599.6,2.21880046]
[1739156829724,3.84659,2599.7,2599.2,2.46775803]
[1739156829906,3.84635,2599.9,2599.1,7.317]
[1739156829907,3.84635,2599.9,2599.6,2.46775803]
[1739156830110,3.84659,2599.7,2599.6,2.46775803]
[1739156830323,3.84689,2599.5,2599.2,2.46775803]
[1739156830630,0.7601,2599.6,2599.2,2.46775803]
[1739156830810,3.84691,2599.5,2599.2,2.46775803]
[1739156831377,3.84718,2599.3,2598.8,2.46775803]
[1739156831932,3.84766,2599.0,2598.8,2.46775803]
[1739156832136,3.84737,2599.2,2598.8,2.46775803]
[1739156832281,3.84749,2599.1,2598.8,2.46775803]
[1739156832482,3.84778,2598.9,2598.8,2.46775803]
[1739156832793,3.84749,2599.1,2598.8,2.46775803]
[1739156833004,4.60697,2599.6,2598.4,2.46775803]
[1739156833205,3.84837,2598.5,2598.4,2.46775803]
[1739156833718,3.84807,2598.7,2598.4,2.46775803]
[1739156834224,0.04448676,2598.6,2598.4,2.46775803]
[1739156834422,0.04448676,2598.6,2598.4,2.71627012]
[1739156834581,3.84782,2598.9,2598.4,2.71627012]
[1739156834781,0.04448676,2598.5,2598.4,2.71627012]
[1739156835013,3.84782,2598.9,2598.4,2.71627012]
[1739156835182,0.04433068,2598.5,2598.4,2.71627012]
[1739156835384,3.84724,2599.3,2598.8,3.84792]
[1739156835583,3.84724,2599.3,2598.8,2.46775803]
[1739156835796,3.89168068,2599.2,2598.8,2.46775803]
[1739156836015,3.89168068,2599.2,2598.6,3.84812]
[1739156836016,3.84808,2598.7,2598.5,0.817]
[1739156836219,3.84808,2598.7,2598.4,2.46775803]
[1739156836405,7.69628,2598.7,2598.4,2.46775803]
[1739156836733,3.89256068,2598.6,2598.4,2.46775803]
[1739156837810,3.89256068,2598.6,2598.3,0.01736288]
[1739156837811,0.04433068,2598.6,2598.3,0.01736288]
[1739156837984,3.84852,2598.4,2598.3,0.01736288]
[1739156838181,3.84837,2598.5,2598.3,0.01736288]
[1739156838420,0.04433068,2598.6,2598.3,0.01736288]
[1739156838717,3.84842,2598.5,2598.3,0.01736288]
[1739156838881,0.04433068,2598.4,2598.3,0.01736288]
[1739156839083,3.84852,2598.4,2598.3,0.01736288]
[1739156839289,3.89285068,2598.4,2598.3,0.01736288]
[1739156839827,0.04433068,2598.4,2598.3,7.70079091]
[1739156840123,3.84697,2599.5,2598.9,0.817]
[1739156840420,3.88980745,2599.4,2599.0,2.46775803]
[1739156840625,0.04274745,2599.4,2599.0,6.31535803]
[1739156840786,0.04274745,2599.4,2599.0,2.46775803]
[1739156841122,3.84699,2599.5,2599.1,0.3284758]
[1739156841482,0.04214075,2599.4,2599.1,0.3284758]
[1739156841688,0.04214075,2599.4,2599.3,3.84718]
[1739156841918,3.84661,2599.7,2599.1,4.1758158]
[1739156842119,0.04214075,2599.6,2599.4,3.84692]
[1739156842326,3.84611,2600.1,2599.5,1.205292]
[1739156842485,3.84611,2600.1,2599.5,5.052102]
[1739156842685,0.04292095,2600.0,2599.6,3.84671]
[1739156842891,4.6240324,2600.1,2599.5,1.205292]
[1739156843213,0.04292095,2600.0,2599.5,5.052182]
[1739156843409,3.84631,2599.9,2599.6,1.136686]
[1739156843616,3.84631,2599.9,2599.4,2.46775803]
[1739156843907,0.04320695,2599.8,2599.4,2.46775803]
[1739156844220,3.8473,2599.3,2599.1,0.3284758]
[1739156844424,3.84667,2599.7,2599.0,2.46775803]
[1739156844609,0.04331959,2599.2,2599.0,2.46775803]
[1739156844813,3.84709,2599.4,2599.0,2.46775803]
[1739156845010,3.84734,2599.2,2599.0,2.46775803]
[1739156845329,3.84805,2598.8,2598.6,2.46775803]
[1739156845523,0.04309429,2599.3,2598.6,2.46775803]
[1739156845524,3.84807,2598.7,2598.6,2.46775803]
[1739156845827,0.04308563,2598.7,2598.6,2.46775803]
[1739156845988,3.84769,2599.0,2598.6,2.71453383]
[1739156846189,3.89115563,2598.7,2598.3,0.01736288]
[1739156846495,3.84837,2598.5,2598.3,0.01736288]
[1739156846706,3.84852,2598.4,2598.3,0.01736288]
[1739156847088,3.89093812,2598.4,2598.3,0.01736288]
[1739156847889,0.04241812,2598.4,2598.3,0.01736288]
[1739156848292,3.84813,2598.7,2598.3,0.01736288]
[1739156848492,3.84838,2598.5,2598.3,0.01736288]
[1739156849030,0.04130823,2598.4,2598.3,0.01736288]
[1739156849397,3.88982823,2598.4,2598.3,0.01736288]
[1739156850535,4.66562823,2598.4,2598.3,0.01736288]
[1739156851132,7.66562823,2598.4,2598.3,0.01736288]
[1739156851433,3.81710823,2598.4,2597.4,2.46775803]
[1739156851635,3.84912,2598.0,2597.9,2.22067653]
[1739156852006,3.89032414,2598.0,2597.9,2.22067653]
[1739156852314,0.04120414,2598.0,2597.9,2.22067653]
[1739156852628,3.84856,2598.4,2597.9,2.22067653]
[1739156852830,0.04089181,2598.0,2597.9,2.63285687]
[1739156853139,3.84826,2598.6,2597.9,2.63285687]
[1739156853318,3.84867,2598.3,2597.9,2.22067653]
[1739156853835,3.84867,2598.3,2598.2,2.22067653]
[1739156854341,0.7758,2599.0,2598.3,3.84866]
[1739156854544,3.84792,2598.8,2598.7,2.22067653]
[1739156854838,3.84759,2599.1,2598.7,2.22067653]
[1739156855039,3.84758,2599.1,2598.7,2.22067653]
[1739156855427,3.84792,2598.8,2598.7,2.22067653]
[1739156855928,3.84843,2598.5,2598.4,2.22067653]
[1739156856653,3.84763,2599.0,2598.4,2.22067653]
[1739156856654,3.84782,2598.9,2598.4,2.44274418]
[1739156856803,3.84813,2598.7,2598.4,2.22067653]
[1739156857242,3.84837,2598.5,2598.4,2.22067653]
[1739156857839,3.84822,2598.6,2598.1,2.22067653]
[1739156858045,3.84881,2598.2,2598.1,2.22067653]
[1739156858603,3.84926,2597.9,2597.8,2.23804275]
[1739156859350,3.84926,2597.9,2597.8,0.01736622]
[1739156862843,0.7653,2598.7,2597.9,0.55]
[1739156863039,4.61337,2598.7,2598.6,2.22067653]
[1739156863352,4.65170572,2598.7,2598.6,2.22067653]
[1739156863719,3.84852,2598.4,2598.3,2.22067653]